fUST/lending_fUST_20260103
["ID","MTS","AMOUNT","RATE_DAILY","PERIOD"]
[400373658,1767453040384,-500.0,0.00013273,2]
[400373659,1767453040394,-500.0,0.00013273,2]
[400373660,1767453040405,-500.0,0.00013273,2]
[400373661,1767453040415,-500.0,0.00013273,2]
[400373662,1767453040426,-500.0,0.00013273,2]
[400373663,1767453040436,-638.64633295,0.00013273,2]
[400373664,1767453040446,-500.0,0.00013273,2]
[400373665,1767453040456,-236.76731322,0.00013273,2]
[400373666,1767453040466,-500.0,0.00013273,2]
[400373667,1767453040476,-500.0,0.00013273,2]
[400373668,1767453040485,-500.0,0.00013273,2]
[400373669,1767453040495,-501.08861546,0.000133,2]
[400373670,1767453040505,-720.0,0.00013362,2]
[400373671,1767453040515,-500.0,0.00013424,2]
[400373672,1767453040525,-500.0,0.00013424,2]
[400373673,1767453040536,-10000.0,0.0001354,2]
[400373674,1767453040546,-250.0,0.00013549,2]
[400373675,1767453040556,-251.79035134,0.00013549,2]
[400373676,1767453040566,-250.0,0.00013549,2]
[400373677,1767453040577,-250.0,0.00013549,2]
[400373678,1767453040588,-30000.0,0.00013549,2]
[400373679,1767453040598,-269.61503092,0.00013549,2]
[400373680,1767453040608,-2674.60743027,0.00013549,2]
[400373681,1767453040618,-500.0,0.00013561,2]
[400373682,1767453040629,-600.0,0.00013561,2]
[400373683,1767453040639,-328.28,0.000136,2]
[400373684,1767453040650,-2480.64123122,0.00013646,2]
[400373685,1767453040660,-300.0,0.00013673,2]
[400373686,1767453040670,-587.0,0.00013685,2]
[400373687,1767453040681,-2351.0,0.00013687,2]
[400373688,1767453040691,-500.0,0.00013698,2]
[400373689,1767453040701,-500.0,0.00013698,2]
[400373690,1767453040710,-500.0,0.00013698,2]
[400373691,1767453040720,-500.0,0.00013698,2]
[400373692,1767453040730,-500.0,0.00013698,2]
[400373693,1767453040741,-500.0,0.00013698,2]
[400373694,1767453040751,-549.12762981,0.00013698,2]
[400373695,1767453040761,-500.0,0.00013698,2]
[400373696,1767453040771,-500.0,0.00013698,2]
[400373697,1767453040781,-500.0,0.00013698,2]
[400373698,1767453040791,-500.0,0.00013698,2]
[400373699,1767453040800,-500.0,0.00013698,2]
[400373700,1767453040811,-500.0,0.00013698,2]
[400373701,1767453040823,-589.37065004,0.00013698,2]
[400373702,1767453040832,-500.0,0.00013698,2]
[400373703,1767453040842,-500.0,0.00013698,2]
[400373704,1767453040852,-500.0,0.00013698,2]
[400373705,1767453040862,-500.0,0.00013698,2]
[400373706,1767453040872,-500.0,0.00013698,2]
[400373707,1767453040976,-500.0,0.00013698,2]
[400373708,1767453040987,-500.0,0.00013698,2]
[400373709,1767453040996,-500.0,0.00013698,2]
[400373710,1767453041007,-500.0,0.00013698,2]
[400373711,1767453041017,-500.0,0.00013698,2]
[400373712,1767453041027,-226.80281086,0.00013698,2]
[400373713,1767453041037,-500.0,0.00013698,2]
[400373714,1767453041047,-530.23109502,0.00013698,2]
[400373715,1767453041057,-540.00737412,0.00013698,2]
[400373716,1767453041068,-646.51082725,0.00013698,2]
[400373717,1767453041078,-500.0,0.00013698,2]
[400373718,1767453041087,-500.0,0.00013698,2]
[400373719,1767453041096,-500.0,0.00013698,2]
[400373720,1767453041107,-500.0,0.00013698,2]
[400373721,1767453041117,-500.0,0.00013698,2]
[400373722,1767453041127,-500.0,0.00013698,2]
[400373723,1767453041136,-500.0,0.00013698,2]
[400373724,1767453041146,-500.0,0.00013698,2]
[400373725,1767453041156,-500.0,0.00013698,2]
[400373726,1767453041167,-500.0,0.00013698,2]
[400373727,1767453041177,-500.0,0.00013698,2]
[400373728,1767453041187,-500.0,0.00013698,2]
[400373729,1767453041198,-500.0,0.00013698,2]
[400373730,1767453041208,-500.0,0.00013698,2]
[400373731,1767453041218,-1228.877639,0.00013699,2]
[400373732,1767453041228,-1000.0,0.00013699,2]
[400373733,1767453041237,-900.3566819,0.00013699,2]
[400373734,1767453041247,-500.0,0.00013699,2]
[400373735,1767453041257,-500.0,0.00013699,2]
[400373736,1767453041269,-500.0,0.00013699,2]
[400373737,1767453041279,-500.0,0.00013699,2]
[400373738,1767453041289,-500.0,0.00013699,2]
[400373739,1767453041299,-500.0,0.00013699,2]
[400373740,1767453041309,-500.0,0.00013699,2]
[400373741,1767453041319,-500.0,0.00013699,2]
[400373742,1767453041328,-500.0,0.00013699,2]
[400373743,1767453041338,-610.16876629,0.00013699,2]
[400373744,1767453041348,-500.0,0.00013699,2]
[400373745,1767453041358,-500.27689491,0.00013699,2]
[400373746,1767453041368,-500.0,0.00013699,2]
[400373747,1767453041378,-501.59745083,0.00013699,2]
[400373748,1767453041388,-500.0,0.00013699,2]
[400373749,1767453041398,-500.0,0.00013699,2]
[400373750,1767453041408,-168.67407301,0.00013699,2]
[400373751,1767453041418,-500.0,0.00013699,2]
[400373752,1767453041428,-500.0,0.00013699,2]
[400373753,1767453041439,-500.0,0.00013699,2]
[400373754,1767453041450,-500.0,0.00013699,2]
[400373755,1767453041460,-502.51733545,0.00013699,2]
[400373756,1767453041469,-159.81440509,0.00013699,2]
[400373757,1767453041479,-251.29118593,0.00013699,2]
[400373758,1767453041489,-158.37420945,0.00013699,2]
[400373759,1767453041499,-500.0,0.00013699,2]
[400373760,1767453041509,-227.42523476,0.00013699,2]
[400373761,1767453041520,-500.0,0.00013699,2]
[400373762,1767453041530,-500.0,0.00013699,2]
[400373763,1767453041540,-524.9700981,0.00013699,2]
[400373764,1767453041551,-500.0,0.00013699,2]
[400373765,1767453041562,-500.0867866,0.00013699,2]
[400373766,1767453041572,-340.22493388,0.00013699,2]
[400373767,1767453041582,-500.0,0.00013699,2]
[400373768,1767453041592,-535.02320419,0.00013699,2]
[400373769,1767453041605,-500.0,0.00013699,2]
[400373770,1767453041615,-500.0,0.00013699,2]
[400373771,1767453041625,-500.0,0.00013699,2]
[400373772,1767453041635,-500.0,0.00013699,2]
[400373773,1767453041644,-500.17833478,0.00013699,2]
[400373774,1767453041654,-500.0,0.00013699,2]
[400373775,1767453041664,-500.0,0.00013699,2]
[400373776,1767453041675,-500.0,0.00013699,2]
[400373777,1767453041684,-500.0,0.00013699,2]
[400373778,1767453041694,-500.0,0.00013699,2]
[400373779,1767453041705,-500.0,0.00013699,2]
[400373780,1767453041715,-500.0,0.00013699,2]
[400373781,1767453041725,-500.0,0.00013699,2]
[400373782,1767453041734,-600.1612381,0.00013699,2]
[400373783,1767453041745,-500.0,0.00013699,2]
[400373784,1767453041755,-500.49764939,0.00013699,2]
[400373785,1767453041764,-500.62462161,0.00013699,2]
[400373786,1767453041774,-500.61750479,0.00013699,2]
[400373787,1767453041784,-293.74661652,0.00013699,2]
[400373788,1767453041793,-500.0,0.00013699,2]
[400373789,1767453041803,-500.0,0.00013699,2]
[400373790,1767453041812,-501.71232358,0.00013699,2]
[400373791,1767453041821,-500.75511451,0.00013699,2]
[400373792,1767453041831,-500.0,0.00013699,2]
[400373793,1767453041841,-500.0,0.00013699,2]
[400373794,1767453041851,-500.0,0.00013699,2]
[400373795,1767453041861,-500.0,0.00013699,2]
[400373796,1767453041871,-500.0,0.00013699,2]
[400373797,1767453041881,-208.70254366,0.000137,2]
[400373798,1767453041891,-1000.0,0.00013821,2]
[400373799,1767453041900,-1000.0,0.00013821,2]
[400373800,1767453041910,-1000.0,0.00013821,2]
[400373801,1767453041920,-938.18874074,0.00013821,2]
[400373802,1767453041929,-234.68932698,0.00013821,2]
[400373803,1767453041939,-1000.0,0.00013821,2]
[400373804,1767453041953,-1000.0,0.00013821,2]
[400373805,1767453041962,-397.22503327,0.00013821,2]
[400373806,1767453041971,-746.99098841,0.00013821,2]
[400373807,1767453041981,-1015.60412652,0.00013821,2]
[400373808,1767453041992,-578.20743154,0.00013821,2]
[400373809,1767453042002,-449.95391179,0.00013821,2]
[400373810,1767453042017,-199.13796001,0.00013821,2]
[400373811,1767453042028,-232.42158603,0.00013821,2]
[400373812,1767453042038,-1000.0,0.00013821,2]
[400373813,1767453042048,-1000.0,0.00013821,2]
[400373814,1767453042057,-500.63147307,0.00013821,2]
[400373815,1767453042068,-1000.0,0.00013821,2]
[400373816,1767453042081,-1000.0,0.00013821,2]
[400373817,1767453042091,-1000.0,0.00013821,2]
[400373818,1767453042100,-501.86379231,0.00013821,2]
[400373819,1767453042110,-1000.0,0.00013821,2]
[400373820,1767453042119,-1000.0,0.00013821,2]
[400373821,1767453042129,-501.60259245,0.00013821,2]
[400373822,1767453042139,-1000.0,0.00013821,2]
[400373823,1767453042150,-1000.0,0.00013821,2]
[400373824,1767453042160,-1000.0,0.00013821,2]
[400373825,1767453042170,-1000.0,0.00013821,2]
[400373826,1767453042179,-647.14700373,0.00013821,2]
[400373827,1767453042189,-1000.0,0.00013821,2]
[400373828,1767453042198,-1000.0,0.00013821,2]
[400373829,1767453042209,-1000.0,0.00013821,2]
[400373830,1767453042219,-1000.0,0.00013821,2]
[400373831,1767453042228,-1000.0,0.00013821,2]
[400373832,1767453042319,-179.12413668,0.00013821,2]
[400373833,1767453042329,-278.08591794,0.00013821,2]
[400373834,1767453042340,-572.9420595,0.00013821,2]
[400373835,1767453042350,-1000.0,0.00013821,2]
[400373836,1767453042361,-1000.0,0.00013821,2]
[400373837,1767453042371,-729.20284135,0.00013821,2]
[400373838,1767453042381,-1000.0,0.00013821,2]
[400373839,1767453042392,-500.0,0.00013835,2]
[400373840,1767453042402,-328.28,0.000139,2]
[400373841,1767453042412,-1660.61,0.00013961,2]
[400373842,1767453042423,-333.69733,0.00013972,2]
[400373843,1767453042433,-13403.12061619,0.00014097,2]
[400373844,1767453042443,-772.44046364,0.00014105,2]
[400373845,1767453042453,-3089.76185458,0.00014105,2]
[400373846,1767453042463,-6951.9641728,0.00014105,2]
[400373847,1767453042473,-401.40196463,0.00014105,2]
[400373848,1767453042484,-1604.00225065,0.00014105,2]
[400373849,1767453042494,-600.0,0.00014221,2]
[400373850,1767453042504,-1000.0,0.00014247,2]
[400373851,1767453042515,-152.47965923,0.00014247,2]
[400373852,1767453042525,-1037.22456207,0.00014247,2]
[400373853,1767453042535,-1000.0,0.00014247,2]
[400373854,1767453042551,-303.83727218,0.00014247,2]
[400373855,1767453042561,-1000.0,0.00014247,2]
[400373856,1767453042571,-1000.0,0.00014247,2]
[400373857,1767453042581,-1002.57089721,0.00014247,2]
[400373858,1767453042591,-1002.80318705,0.00014247,2]
[400373859,1767453042600,-1100.69789514,0.00014247,2]
[400373860,1767453042611,-198.34157968,0.00014247,2]
[400373861,1767453042621,-1000.0,0.00014247,2]
[400373862,1767453042631,-250.0,0.00014247,2]
[400373863,1767453042642,-1000.0,0.00014247,2]
[400373864,1767453042652,-1000.0,0.00014247,2]
[400373865,1767453042662,-1000.0,0.00014247,2]
[400373866,1767453042672,-970.94631538,0.00014247,2]
[400373867,1767453042681,-1000.0,0.00014247,2]
[400373868,1767453042691,-576.38948379,0.00014247,2]
[400373869,1767453042701,-1000.0,0.00014247,2]
[400373870,1767453042711,-1000.0,0.00014247,2]
[400373871,1767453042720,-1000.0,0.00014247,2]
[400373872,1767453042731,-1005.16333273,0.00014247,2]
[400373873,1767453042742,-1000.0,0.00014247,2]
[400373874,1767453042751,-1000.0,0.00014247,2]
[400373875,1767453042761,-1000.0,0.00014247,2]
[400373876,1767453042771,-1000.0,0.00014247,2]
[400373877,1767453042780,-442.87105294,0.00014247,2]
[400373878,1767453042790,-1000.0,0.00014247,2]
[400373879,1767453042801,-981.40904469,0.00014247,2]
[400373880,1767453042811,-1000.0,0.00014247,2]
[400373881,1767453042821,-441.08770965,0.00014247,2]
[400373882,1767453042832,-1001.18838612,0.00014247,2]
[400373883,1767453042842,-603.1992294,0.00014247,2]
[400373884,1767453042852,-1000.0,0.00014247,2]
[400373885,1767453042862,-1000.0,0.00014247,2]
[400373886,1767453042872,-1000.0,0.00014247,2]
[400373887,1767453042882,-606.47999173,0.00014247,2]
[400373888,1767453042892,-1000.0,0.00014247,2]
[400373889,1767453042902,-1000.0,0.00014247,2]
[400373890,1767453042912,-1000.0,0.00014247,2]
[400373891,1767453042922,-328.28,0.000143,2]
[400373892,1767453042932,-1041.66666667,0.0001432,2]
[400373893,1767453042942,-1501.13613524,0.00014368,2]
[400373894,1767453042952,-1496.03409969,0.00014368,2]
[400373895,1767453042964,-889.66547731,0.00014368,2]
[400373896,1767453042975,-1500.0,0.00014368,2]
[400373897,1767453042985,-1000.0,0.00014368,2]
[400373898,1767453042995,-1500.0,0.00014368,2]
[400373899,1767453043007,-892.70862672,0.00014368,2]
[400373900,1767453043017,-1359.95079837,0.00014368,2]
[400373901,1767453043028,-1500.0,0.00014368,2]
[400373902,1767453043039,-1011.9499622,0.00014368,2]
[400373903,1767453043048,-1500.0,0.00014368,2]
[400373904,1767453043059,-1500.0,0.00014368,2]
[400373905,1767453043069,-1500.0,0.00014368,2]
[400373906,1767453043079,-1015.55260822,0.00014368,2]
[400373907,1767453043089,-1502.86490349,0.00014368,2]
[400373908,1767453043099,-1500.0,0.00014368,2]
[400373909,1767453043109,-1500.0,0.00014368,2]
[400373910,1767453043119,-490.52501116,0.00014368,2]
[400373911,1767453043129,-1500.0,0.00014368,2]
[400373912,1767453043138,-1500.0,0.00014368,2]
[400373913,1767453043148,-672.57061207,0.00014368,2]
[400373914,1767453043158,-1500.0,0.00014368,2]
[400373915,1767453043168,-607.59034005,0.00014368,2]
[400373916,1767453043178,-1500.0,0.00014368,2]
[400373917,1767453043187,-1701.29456287,0.00014378,2]
[400373918,1767453043197,-1500.0,0.0001444,2]
[400373919,1767453043207,-328.28,0.000146,2]
[400373920,1767453043217,-864.0,0.00014698,2]
[400373921,1767453043226,-97.38675825,0.00014736,2]
[400373922,1767453043532,-2313.90633025,0.00014736,2]
[400373926,1767453044356,-3e-08,0.00014736,2]
[400373945,1767453045261,-2141.85924301,0.00014736,2]
[400374204,1767453048204,-1393.49952646,0.00014736,2]
[400374723,1767453068904,290.85,0.00010428,2]
[400374724,1767453149356,287.15,0.00010507,2]
[400374725,1767453150017,416.13,0.00011,2]
[400374727,1767453186157,-416.13,0.000114,2]
[400374728,1767453210965,200.0,0.00028215,120]
[400374729,1767453232216,283.49,0.00010505,2]
[400374730,1767453240915,186.014456,0.00011876,41]
[400374731,1767453241124,186.014456,0.00011876,80]
[400374732,1767453241314,186.014456,0.00011876,119]
[400374733,1767453251209,378.93956058,0.00011431,2]
[400374734,1767453261222,5000.0,0.00011431,2]
[400374735,1767453269078,295.33,0.000114,2]
[400374736,1767453284722,4042.25043942,0.00011431,2]
[400374737,1767453284757,957.74956058,0.00011431,2]
[400374738,1767453308224,5000.0,0.00011431,2]
[400374739,1767453311980,279.88,0.00010458,2]
[400374740,1767453312395,559.77,0.00011409,2]
[400374741,1767453324654,3202.61043942,0.00011431,2]
[400374742,1767453324684,620.76486387,0.00011431,2]
[400374743,1767453329609,-396.43877862,0.00011431,2]
[400374744,1767453329665,-295.33,0.000118,2]
[400374745,1767453332480,5000.0,0.000118,2]
[400374746,1767453356446,3268.32322404,0.00011876,2]
[400374747,1767453380521,2087.66381585,0.00011876,2]
[400374748,1767453387857,-186.014456,0.00011876,2]
[400374749,1767453387882,-381.63595802,0.00012,2]
[400374750,1767453389903,-216.57968593,0.00012,2]
[400374751,1767453391330,-189.20691633,0.00012,2]
[400374752,1767453391499,400.7,0.000114,2]
[400374753,1767453391681,285.96,0.00011489,2]
[400374754,1767453392265,400.7,0.000118,2]
[400374755,1767453393565,-161.57743972,0.00012,2]
[400374756,1767453396689,-250.4574325,0.000121,2]
[400374757,1767453397049,798.00555721,0.00012,2]
[400374758,1767453399624,1000.0,0.00011,2]
[400374759,1767453409110,-150.2425675,0.000121,2]
[400374760,1767453472337,282.32,0.00010824,2]
[400374761,1767453472778,564.64,0.00011808,2]
[400374762,1767453508586,301.9,0.000114,2]
[400374763,1767453509214,301.9,0.000118,2]
[400374764,1767453509749,301.9,0.000121,2]
[400374770,1767453552537,271.54,0.00010836,2]
[400374772,1767453552950,543.08,0.00011821,2]
[400374773,1767453568807,394.78,0.000114,2]
[400374774,1767453569391,394.78,0.000118,2]
[400374775,1767453569854,394.78,0.000121,2]
[400374776,1767453625217,250.4574325,0.00012175,2]
[400374777,1767453629565,307.47,0.000114,2]
[400374778,1767453630096,307.47,0.000118,2]
[400374779,1767453631135,307.47,0.000121,2]
[400374780,1767453636760,261.17,0.00011034,2]
[400374781,1767453637211,522.35,0.00012037,2]
[400374782,1767453717332,251.2,0.00010968,2]
[400374783,1767453717792,502.41,0.00011965,2]
[400374784,1767453738056,5291.0525675,0.00012078,2]
[400374785,1767453738110,10000.01,0.00012078,2]
[400374786,1767453738138,10000.01,0.00012078,2]
[400374787,1767453738167,9410.7527089,0.00012078,2]
[400374788,1767453749347,389.54,0.000114,2]
[400374789,1767453749769,199.7172911,0.000118,2]
[400374790,1767453749801,189.8227089,0.000118,2]
[400374791,1767453750454,389.54,0.000121,2]
[400374792,1767453750759,5000.0,0.00012175,2]
[400374793,1767453774219,3678.18019398,0.00012175,2]
[400374794,1767453797432,241.61,0.00011055,2]
[400374795,1767453797874,483.22,0.0001206,2]
[400374796,1767453870345,312.39,0.000114,2]
[400374797,1767453871855,312.39,0.000118,2]
[400374798,1767453873484,4972.21980602,0.0001,2]
[400374799,1767453873513,10000.01,0.0001,2]
[400374800,1767453873542,10000.01,0.0001,2]
[400374801,1767453873570,10000.01,0.0001,2]
[400374802,1767453873600,10000.01,0.0001,2]
[400374803,1767453873629,10000.01,0.0001,2]
[400374804,1767453873659,10000.01,0.0001,2]
[400374805,1767453873689,10000.01,0.0001,2]
[400374806,1767453873718,10000.01,0.0001,2]
[400374807,1767453873745,10000.01,0.0001,2]
[400374808,1767453873773,90440.69019398,0.0001,2]
[400374809,1767453877703,232.39,0.00010951,2]
[400374810,1767453896770,-464.77,0.00011947,2]
[400374815,1767453911014,5000.0,0.00011947,2]
[400374816,1767453912469,-312.39,0.000121,2]
[400374817,1767453912839,533.5029129,0.00011884,2]
[400374818,1767453935257,2297.267675,0.00010959,2]
[400374819,1767453958821,289.75,0.00010626,2]
[400374820,1767453972923,-579.5,0.00011591,2]
[400374821,1767453972947,-17.64285878,0.00011917,2]
[400374822,1767453976895,-224.24945607,0.00011917,2]
[400374827,1767453993297,411.37,0.000114,2]
[400374862,1767454003505,-187.96,0.00011798,2]
[400374864,1767454007818,-167.53566674,0.00011798,2]
[400374887,1767454039023,283.84,0.00010575,2]
[400374892,1767454111973,315.85,0.000114,2]
[400374895,1767454120153,2917.8647084,0.0001,2]
[400374896,1767454121396,284.91,0.00010768,2]
[400374899,1767454127990,-569.82,0.00011746,2]
[400374903,1767454142605,-241.64719204,0.00011798,2]
[400374908,1767454158574,-315.85,0.000118,2]
[400374911,1767454174007,-395.33760008,0.00011858,2]
[400374912,1767454189935,-3111.50119445,0.00011917,2]
[400374913,1767454190077,-3777.0076111,0.00011917,2]
[400374915,1767454202002,274.03,0.00010612,2]
[400374916,1767454202438,548.07,0.00011577,2]
[400374918,1767454228266,421.55,0.000114,2]
[400374919,1767454228772,421.55,0.000118,2]
[400374920,1767454229146,421.55,0.000121,2]
[400374935,1767454232173,-595.0,0.00012375,2]
[400374938,1767454232184,-421.55,0.000125,2]
[400374940,1767454232194,-822.1,0.00012541,2]
[400374942,1767454232204,-225.8555936,0.00012555,2]
[400374944,1767454232216,-974.1444064,0.00012555,2]
[400374946,1767454232226,-212.8686349,0.00012696,2]
[400374948,1767454232235,-421.55,0.000128,2]
[400374950,1767454232245,-300.0,0.00012932,2]
[400374952,1767454232254,-300.0,0.00012932,2]
[400374953,1767454232264,-300.0,0.00012932,2]
[400374954,1767454232274,-300.0,0.00012932,2]
[400374955,1767454232284,-300.0,0.00012932,2]
[400374956,1767454232293,-50000.0,0.00012933,2]
[400374957,1767454232303,-5960.09768771,0.00012933,2]
[400374958,1767454232313,-313.78257377,0.00012966,2]
[400374959,1767454232324,-500.0,0.00012999,2]
[400374960,1767454232334,-500.0,0.00012999,2]
[400374961,1767454232345,-313.78257377,0.00013,2]
[400374962,1767454232355,-1003.0,0.00013,2]
[400374963,1767454232365,-19727.01241414,0.00013,7]
[400374964,1767454232376,-1414.17626476,0.00013026,2]
[400374965,1767454232387,-500.0,0.00013032,2]
[400374966,1767454232399,-500.0,0.00013032,2]
[400374967,1767454232409,-406.74683954,0.00013032,2]
[400374968,1767454232419,-500.0,0.00013032,2]
[400374969,1767454232431,-500.0,0.00013032,2]
[400374970,1767454232441,-500.0,0.00013032,2]
[400374971,1767454232451,-500.0,0.00013032,2]
[400374972,1767454232464,-500.0,0.00013032,2]
[400374973,1767454232474,-500.0,0.00013032,2]
[400374974,1767454232484,-500.0,0.00013032,2]
[400374975,1767454232494,-296.97483122,0.00013032,2]
[400374976,1767454232504,-262.40239558,0.00013032,2]
[400374977,1767454232515,-500.0,0.00013032,2]
[400374978,1767454232525,-500.0,0.00013032,2]
[400374979,1767454232535,-500.0,0.00013032,2]
[400374980,1767454232545,-500.0,0.00013032,2]
[400374981,1767454232555,-500.0,0.00013032,2]
[400374982,1767454232565,-500.0,0.00013032,2]
[400374983,1767454232575,-162.62063769,0.00013032,2]
[400374984,1767454232585,-500.0,0.00013032,2]
[400374985,1767454232595,-500.0,0.00013032,2]
[400374986,1767454232605,-500.0,0.00013032,2]
[400374987,1767454232615,-500.0,0.00013032,2]
[400374988,1767454232626,-500.0,0.00013032,2]
[400374989,1767454232636,-500.0,0.00013032,2]
[400374990,1767454232645,-500.0,0.00013032,2]
[400374991,1767454232655,-202.54340531,0.00013032,2]
[400374992,1767454232665,-500.0,0.00013032,2]
[400374993,1767454232675,-500.0,0.00013032,2]
[400374994,1767454232686,-500.0,0.00013032,2]
[400374995,1767454232697,-500.0,0.00013032,2]
[400374996,1767454232706,-500.0,0.00013032,2]
[400374997,1767454232716,-500.0,0.00013032,2]
[400374998,1767454232726,-500.0,0.00013032,2]
[400374999,1767454232736,-500.0,0.00013032,2]
[400375000,1767454232747,-500.0,0.00013032,2]
[400375001,1767454232757,-500.0,0.00013032,2]
[400375002,1767454232767,-500.0,0.00013032,2]
[400375003,1767454232777,-500.0,0.00013032,2]
[400375004,1767454232787,-500.0,0.00013032,2]
[400375005,1767454232797,-500.0,0.00013032,2]
[400375006,1767454232807,-500.0,0.00013032,2]
[400375007,1767454232817,-500.0,0.00013032,2]
[400375008,1767454232827,-500.0,0.00013032,2]
[400375009,1767454232837,-505.82919753,0.00013032,2]
[400375010,1767454232847,-500.0,0.00013032,2]
[400375011,1767454232856,-500.0,0.00013032,2]
[400375012,1767454232866,-500.0,0.00013032,2]
[400375013,1767454232876,-500.0,0.00013032,2]
[400375014,1767454232885,-500.0,0.00013032,2]
[400375015,1767454232896,-500.0,0.00013032,2]
[400375016,1767454232906,-500.0,0.00013032,2]
[400375017,1767454232916,-500.0,0.00013032,2]
[400375018,1767454232926,-500.0,0.00013032,2]
[400375019,1767454232936,-275.12708446,0.00013032,2]
[400375020,1767454232947,-500.0,0.00013032,2]
[400375021,1767454232957,-500.0,0.00013032,2]
[400375022,1767454232968,-500.0,0.00013032,2]
[400375023,1767454232978,-500.0,0.00013032,2]
[400375024,1767454232988,-500.0,0.00013032,2]
[400375025,1767454232999,-500.0,0.00013032,2]
[400375026,1767454233009,-500.0,0.00013032,2]
[400375027,1767454233021,-500.0,0.00013032,2]
[400375028,1767454233031,-500.0,0.00013032,2]
[400375029,1767454233042,-500.0,0.00013032,2]
[400375030,1767454233052,-500.0,0.00013032,2]
[400375031,1767454233070,-500.0,0.00013032,2]
[400375032,1767454233081,-500.0,0.00013032,2]
[400375033,1767454233092,-500.0,0.00013032,2]
[400375034,1767454233102,-500.0,0.00013032,2]
[400375035,1767454233112,-500.0,0.00013032,2]
[400375036,1767454233123,-500.0,0.00013032,2]
[400375037,1767454233133,-500.0,0.00013032,2]
[400375038,1767454233143,-500.0,0.00013032,2]
[400375039,1767454233154,-500.0,0.00013032,2]
[400375040,1767454233164,-500.0,0.00013032,2]
[400375041,1767454233174,-500.0,0.00013032,2]
[400375042,1767454233186,-500.0,0.00013032,2]
[400375043,1767454233196,-500.0,0.00013032,2]
[400375044,1767454233206,-500.0,0.00013032,2]
[400375045,1767454233216,-500.0,0.00013032,2]
[400375046,1767454233226,-500.0,0.00013032,2]
[400375047,1767454233236,-500.0,0.00013032,2]
[400375048,1767454233246,-500.0,0.00013032,2]
[400375049,1767454233257,-500.0,0.00013032,2]
[400375050,1767454233267,-500.0,0.00013032,2]
[400375051,1767454233277,-500.0,0.00013032,2]
[400375052,1767454233288,-500.0,0.00013032,2]
[400375053,1767454233298,-500.0,0.00013032,2]
[400375054,1767454233308,-500.0,0.00013032,2]
[400375055,1767454233318,-526.23366969,0.00013032,2]
[400375056,1767454233328,-500.0,0.00013032,2]
[400375057,1767454233338,-500.0,0.00013032,2]
[400375058,1767454233348,-500.0,0.00013032,2]
[400375059,1767454233358,-500.0,0.00013032,2]
[400375060,1767454233368,-500.0,0.00013032,2]
[400375061,1767454233378,-500.0,0.00013032,2]
[400375062,1767454233388,-500.0,0.00013032,2]
[400375063,1767454233402,-500.0,0.00013032,2]
[400375064,1767454233411,-500.0,0.00013032,2]
[400375065,1767454233422,-500.0,0.00013032,2]
[400375066,1767454233432,-481.83694372,0.00013032,2]
[400375067,1767454233443,-500.0,0.00013032,2]
[400375068,1767454233453,-500.0,0.00013032,2]